bitfinex-derivatives/quotes_BTCF0:USTF0_20251215
["timestamp","ask_amount","ask_price","bid_price","bid_amount"]
[1765813578236,0.19,87374.0,87373.0,0.00012423]
[1765813578429,0.0114465,87364.0,87363.0,0.00017166]
[1765813578632,0.0114486,87348.0,87334.0,0.0114504]
[1765813578833,0.2114486,87348.0,87339.0,0.2895111]
[1765813579033,0.2114486,87348.0,87340.0,0.0114497]
[1765813579034,0.0114492,87344.0,87340.0,0.0114497]
[1765813579236,0.23,87358.0,87357.0,0.0114475]
[1765813579434,0.18,87358.0,87357.0,0.34862]
[1765813579841,0.18,87358.0,87355.0,0.0114476]
[1765813580235,0.18,87358.0,87353.0,0.0114479]
[1765813580540,0.18,87358.0,87349.0,0.00017166]
[1765813580541,0.0114482,87351.0,87349.0,0.00017166]
[1765813580751,0.1914482,87351.0,87349.0,0.00017166]
[1765813580941,0.0114496,87341.0,87340.0,0.001]
[1765813581137,0.0114496,87341.0,87326.0,0.08208046]
[1765813581138,0.0114501,87338.0,87333.0,0.10343859]
[1765813581338,0.0114509,87332.0,87325.0,0.09353196]
[1765813581636,0.1714508,87332.0,87329.0,0.0114511]
[1765813581838,0.00017177,87339.0,87338.0,0.01145]
[1765813582138,0.2,87339.0,87330.0,0.00017177]
[1765813582341,0.0114493,87344.0,87339.0,0.19861]
[1765813582538,0.0114493,87343.0,87339.0,0.19861]
[1765813582737,0.1714493,87343.0,87339.0,0.19861]
[1765813582939,0.16,87343.0,87331.0,0.0114508]
[1765813583138,0.16,87343.0,87340.0,0.0114497]
[1765813583343,0.1714493,87343.0,87339.0,0.19861]
[1765813583733,0.0114494,87342.0,87339.0,0.19861]
[1765813584041,0.1814494,87342.0,87339.0,0.19861]
[1765813584235,0.17,87342.0,87339.0,0.2100598]
[1765813584430,0.1814494,87342.0,87339.0,0.19861]
[1765813584641,0.1814494,87342.0,87339.0,0.19961]
[1765813584838,0.0114496,87341.0,87339.0,0.19961]
[1765813585042,0.2,87341.0,87339.0,0.19961]
[1765813585232,0.2,87341.0,87318.0,0.30203668]
[1765813585233,0.0114555,87296.0,87250.0,0.0114614]
[1765813585437,0.0114587,87271.0,87259.0,0.20505321]
[1765813585632,0.0114587,87271.0,87263.0,0.02091009]
[1765813585633,0.0114598,87264.0,87263.0,0.02091009]
[1765813585839,0.0114598,87264.0,87262.0,0.19861]
[1765813585840,0.1914598,87264.0,87262.0,0.19861]
[1765813586136,0.1914598,87264.0,87262.0,0.21900392]
[1765813586452,0.0114608,87255.0,87254.0,8e-08]
[1765813586638,0.0114635,87235.0,87234.0,0.19861]
[1765813586834,0.1814635,87235.0,87234.0,0.21951684]
[1765813587038,0.0114635,87235.0,87234.0,0.56493683]
[1765813587245,0.0572945,87271.0,87234.0,0.73613863]
[1765813587448,0.0114632,87238.0,87234.0,0.39071864]
[1765813587740,0.0114623,87244.0,87242.0,0.34541999]
[1765813587944,0.0114633,87236.0,87234.0,0.21951684]
[1765813588144,0.1814633,87236.0,87234.0,0.02090684]
[1765813588337,0.1814633,87236.0,87235.0,0.34541999]
[1765813588538,0.0114633,87236.0,87235.0,0.34541999]
[1765813588733,0.00017188,87245.0,87240.0,0.19861]
[1765813588734,0.0114623,87244.0,87240.0,0.19861]
[1765813589141,0.01163408,87245.0,87240.0,0.19861]
[1765813589343,0.00017188,87245.0,87240.0,0.19861]
[1765813589541,0.0114623,87244.0,87240.0,0.19861]
[1765813590240,0.0214623,87244.0,87240.0,0.19861]
[1765813590437,0.00017188,87245.0,87240.0,0.19861]
[1765813590741,0.0114627,87241.0,87240.0,0.19961]
[1765813590941,0.00117188,87245.0,87240.0,0.19961]
[1765813591143,0.0114608,87256.0,87240.0,0.19961]
[1765813591443,0.00011213,87263.0,87262.0,0.20969]
[1765813591650,0.18011213,87263.0,87262.0,0.20969]
[1765813592038,0.11,87263.0,87262.0,0.20969]
[1765813592552,0.00017188,87271.0,87263.0,0.0114598]
[1765813592748,0.20017188,87271.0,87262.0,0.3815224]
[1765813592943,0.20017188,87271.0,87264.0,0.1718324]
[1765813593147,0.0114589,87270.0,87263.0,0.17166676]
[1765813593450,0.08,87270.0,87262.0,0.20969]
[1765813593647,0.0114594,87266.0,87263.0,0.17166676]
[1765813593834,0.0214594,87266.0,87263.0,0.17166676]
[1765813594034,0.0214594,87266.0,87264.0,0.34541999]
[1765813594240,0.1814594,87266.0,87264.0,0.34541999]
[1765813594554,0.17,87266.0,87265.0,0.34541999]
[1765813594847,0.00017188,87271.0,87265.0,0.34541999]
[1765813594848,0.0114594,87267.0,87265.0,0.34541999]
[1765813595042,0.2014594,87267.0,87263.0,0.002]
[1765813595241,0.2014594,87267.0,87266.0,0.34541999]
[1765813595639,0.2014594,87267.0,87262.0,0.21169]
[1765813595640,0.19,87267.0,87262.0,0.21169]
[1765813595841,0.01163068,87271.0,87266.0,0.34541999]
[1765813596035,0.0114592,87268.0,87266.0,0.34541999]
[1765813596243,0.0214592,87268.0,87266.0,0.34541999]
[1765813596444,0.01,87268.0,87266.0,0.34541999]
[1765813596644,0.0114593,87267.0,87266.0,0.34541999]
[1765813596840,0.0534593,87267.0,87266.0,0.34541999]
[1765813597041,0.002,87267.0,87266.0,0.34541999]
[1765813597343,0.003,87267.0,87266.0,0.34541999]
[1765813597545,0.033,87267.0,87266.0,1.02770999]
[1765813597737,0.001,87267.0,87266.0,1.02770999]
[1765813598346,0.00017188,87271.0,87270.0,0.68229]
[1765813598650,0.01017188,87271.0,87270.0,0.68229]
[1765813598854,0.00017188,87271.0,87270.0,0.68229]
[1765813599251,1.88e-06,87271.0,87270.0,0.68229]
[1765813599451,0.00804,87312.0,87274.0,0.20547]
[1765813599755,0.0114538,87309.0,87274.0,0.20547]
[1765813599940,0.0114579,87278.0,87277.0,0.68229]
[1765813600145,0.03245211,87308.0,87274.0,0.20547]
[1765813600146,0.0114561,87291.0,87281.0,0.68229]
[1765813600343,0.011457,87285.0,87281.0,0.68229]
[1765813600560,0.191457,87285.0,87281.0,0.68229]
[1765813600751,0.191457,87285.0,87283.0,0.34541999]
[1765813601754,0.191457,87285.0,87277.0,0.00017188]
[1765813601755,0.3364778,87278.0,87277.0,0.00017188]
[1765813601957,0.5364778,87278.0,87277.0,0.00017188]
[1765813602154,0.5364778,87278.0,87274.0,0.002]
[1765813602155,0.32502,87275.0,87274.0,0.002]
[1765813602455,0.32502,87275.0,87240.0,0.19861]
[1765813602456,0.0114603,87259.0,87240.0,0.19861]
[1765813602662,0.0114626,87242.0,87240.0,0.19861]
[1765813602953,0.1214626,87242.0,87240.0,0.54402999]
[1765813603256,0.1214626,87242.0,87241.0,0.34541999]
[1765813604155,0.0114637,87233.0,87232.0,0.00017188]
[1765813604347,0.0214637,87233.0,87232.0,0.00017188]
[1765813604547,0.0214637,87233.0,87232.0,0.34559187]
[1765813605156,0.8415037,87233.0,87232.0,0.34559187]
[1765813605343,0.5164837,87233.0,87232.0,0.00017188]
[1765813605548,0.0614637,87233.0,87232.0,0.34559187]
[1765813605742,0.2014637,87233.0,87232.0,0.34559187]
[1765813605943,0.1214637,87233.0,87232.0,0.34559187]
[1765813606449,0.7715037,87233.0,87232.0,0.34559187]
[1765813606660,0.7715037,87233.0,87232.0,0.00017188]
[1765813606862,0.4464837,87233.0,87232.0,0.34559187]
[1765813607248,0.7715037,87233.0,87230.0,0.02077712]
[1765813607445,0.7715037,87233.0,87218.0,0.69604882]
[1765813607446,0.0114656,87219.0,87218.0,0.69604882]
[1765813607650,0.0114649,87225.0,87224.0,0.68229]
[1765813607846,0.1914649,87225.0,87224.0,0.68229]
[1765813608253,0.2114649,87225.0,87224.0,0.68229]
[1765813608448,0.21157403,87225.0,87224.0,0.68229]
[1765813608647,0.06010913,87225.0,87224.0,0.68229]
[1765813609056,0.00010913,87225.0,87224.0,0.68229]
[1765813609264,0.05010913,87225.0,87219.0,1.5]
[1765813609563,0.00017198,87233.0,87232.0,0.68229]
[1765813609764,0.04017198,87233.0,87232.0,0.68229]
[1765813609957,0.00017198,87233.0,87232.0,0.68229]
[1765813610161,1.98e-06,87233.0,87232.0,0.68229]
[1765813610958,0.01146568,87233.0,87232.0,0.71081165]
[1765813611259,1.98e-06,87233.0,87232.0,0.38195165]
[1765813611463,0.0114639,87232.0,87229.0,0.20547]
[1765813611766,0.06,87232.0,87231.0,0.68229]
[1765813611956,0.0714639,87232.0,87231.0,0.68229]
[1765813612156,1.98e-06,87233.0,87229.0,0.20547]
[1765813612356,1.98e-06,87233.0,87230.0,0.0114641]
[1765813612556,0.0114627,87241.0,87240.0,0.68229]
[1765813612752,0.08,87241.0,87240.0,0.68229]
[1765813613056,0.0114637,87233.0,87232.0,0.68229]
[1765813613667,0.0114637,87233.0,87229.0,0.20647]
[1765813613872,0.0114637,87233.0,87232.0,0.68229]
[1765813614464,0.1714637,87233.0,87232.0,0.68229]
[1765813614664,0.01163468,87241.0,87240.0,0.68229]
[1765813614858,0.0114641,87231.0,87229.0,0.20747]
[1765813615056,0.0714641,87231.0,87229.0,0.20747]
[1765813615360,0.0114641,87231.0,87229.0,0.20747]
[1765813615559,0.00017198,87241.0,87234.0,0.0114636]
[1765813615777,0.00017198,87241.0,87240.0,0.68229]
[1765813615958,0.05855927,87263.0,87246.0,0.20547]
[1765813616161,0.0114606,87258.0,87257.0,0.68229]
[1765813616371,0.23768739,87258.0,87257.0,0.68229]
[1765813616671,0.05855927,87275.0,87273.0,0.68229]
[1765813616863,0.2,87275.0,87274.0,0.68229]
[1765813617561,0.2114582,87275.0,87274.0,0.68229]
[1765813618060,0.2,87275.0,87274.0,1.4252683]
[1765813618269,0.2,87275.0,87272.0,0.35343]
[1765813618270,0.67549,87273.0,87272.0,0.35343]
[1765813618458,0.87549,87273.0,87272.0,0.35343]
[1765813618657,0.87549,87273.0,87246.0,0.93687]
[1765813618658,0.67549,87266.0,87246.0,0.20547]
[1765813618958,0.0114616,87249.0,87247.0,0.02884]
[1765813619155,0.0914616,87249.0,87248.0,0.32886]
[1765813619354,0.08,87249.0,87248.0,0.68229]
[1765813619554,0.2,87249.0,87248.0,0.68229]
[1765813619758,0.0114618,87248.0,87246.0,0.20547]
[1765813619962,0.0114613,87252.0,87247.0,0.0114619]
[1765813620155,0.03,87252.0,87251.0,0.68229]
[1765813620359,0.00017188,87256.0,87255.0,0.0114608]
[1765813620555,0.00017188,87256.0,87255.0,0.6937508]
[1765813620765,0.05855927,87279.0,87272.0,0.6937486]
[1765813620968,0.09759878,87298.0,87272.0,0.6937486]
[1765813620969,0.0114562,87291.0,87290.0,0.68229]
[1765813621159,0.2114562,87291.0,87287.0,0.73128]
[1765813621563,0.0114574,87281.0,87280.0,0.20547]
[1765813621869,0.07,87281.0,87280.0,0.96551363]
[1765813622069,0.0814574,87281.0,87280.0,0.93072363]
[1765813622368,0.0814574,87281.0,87272.0,0.00017188]
[1765813622369,0.0114585,87273.0,87272.0,0.00017188]
[1765813622665,0.00017188,87289.0,87272.0,0.72463186]
[1765813622863,0.001,87281.0,87280.0,0.69653]
[1765813623064,0.091,87281.0,87280.0,0.69653]
[1765813623257,0.093,87281.0,87280.0,0.69653]
[1765813623468,0.00017188,87289.0,87288.0,0.7079865]
[1765813623657,0.07807903,87315.0,87314.0,0.69653]
[1765813623862,0.18,87315.0,87314.0,0.69653]
[1765813624068,0.0114508,87332.0,87314.0,0.69653]
[1765813624069,0.07807903,87334.0,87328.0,0.69653]
[1765813624268,0.0114506,87333.0,87328.0,0.69653]
[1765813624469,0.18,87333.0,87328.0,0.69653]
[1765813624859,0.0114507,87332.0,87328.0,0.69653]
[1765813625058,0.0114516,87326.0,87325.0,0.3493]
[1765813625264,0.09,87326.0,87325.0,0.3493]
[1765813625469,0.09,87326.0,87325.0,0.69653]
[1765813625780,0.00017151,87339.0,87331.0,0.0114508]
[1765813625964,0.18017151,87339.0,87338.0,0.69653]
[1765813626574,0.18017151,87339.0,87327.0,0.7308]
[1765813626768,0.0114519,87324.0,87322.0,0.00017178]
[1765813627072,0.18017151,87339.0,87323.0,0.69653]
[1765813627073,0.00017151,87339.0,87323.0,0.69653]
[1765813627274,0.16017151,87339.0,87329.0,0.0114511]
[1765813627475,0.011451,87331.0,87330.0,0.69653]
[1765813627670,0.17,87331.0,87325.0,0.7312]
[1765813627871,0.17,87331.0,87330.0,0.69653]
[1765813628076,0.00017151,87339.0,87338.0,0.69653]
[1765813628286,0.18017151,87339.0,87338.0,0.70798]
[1765813628466,0.18217151,87339.0,87338.0,0.69653]
[1765813628771,0.21122003,87339.0,87338.0,0.69653]
[1765813629472,0.21122003,87339.0,87323.0,0.0114519]
[1765813629672,0.21122003,87339.0,87322.0,0.00017178]
[1765813629673,0.0114516,87326.0,87322.0,0.02858927]
[1765813629861,0.0114518,87324.0,87322.0,0.00017178]
[1765813630063,0.02904852,87323.0,87322.0,0.00017178]
[1765813630267,0.19904852,87323.0,87322.0,0.00017178]
[1765813630684,0.87102852,87323.0,87322.0,0.00017178]
[1765813631172,0.87102852,87323.0,87291.0,1.43216]
[1765813631173,0.67198,87313.0,87312.0,0.02822639]
[1765813631372,0.0114572,87283.0,87276.0,0.213938]
[1765813631570,0.1,87283.0,87282.0,0.69653]
[1765813631764,0.0114538,87309.0,87282.0,0.69653]
[1765813631765,0.0114562,87291.0,87282.0,0.69653]
[1765813631969,0.0114572,87283.0,87282.0,0.02075239]
[1765813632164,0.0114577,87279.0,87278.0,0.00017178]
[1765813632381,0.02,87279.0,87278.0,0.00017178]
[1765813632567,0.0314577,87279.0,87278.0,0.00017178]
[1765813632875,0.2014577,87279.0,87278.0,0.00017178]
[1765813633074,0.8734377,87279.0,87278.0,0.00017178]
[1765813633377,0.0114601,87261.0,87260.0,0.00013656]
[1765813633679,0.1814601,87261.0,87260.0,0.00013656]
[1765813633879,0.0514601,87261.0,87260.0,0.00013656]
[1765813634078,0.1914601,87261.0,87260.0,0.00013656]
[1765813634276,0.0114594,87266.0,87260.0,0.02108598]
[1765813634581,0.11,87266.0,87265.0,0.69653]
[1765813634877,0.00017188,87269.0,87268.0,0.3493]
[1765813635180,0.17017188,87269.0,87268.0,0.3493]
[1765813635979,0.0114534,87312.0,87268.0,0.69653]
[1765813636172,0.02868796,87300.0,87276.0,0.20248]
[1765813636372,0.0114569,87285.0,87276.0,0.20248]
[1765813636678,0.0114578,87279.0,87276.0,0.20248]
[1765813636882,0.18,87279.0,87276.0,0.20248]
[1765813637069,0.18,87279.0,87278.0,0.69653]
[1765813637276,0.00017188,87286.0,87276.0,0.20248]
[1765813637277,0.01162868,87286.0,87285.0,0.3493]
[1765813637474,0.20162868,87286.0,87285.0,0.3493]
[1765813637676,0.19017188,87286.0,87285.0,0.7079869]
[1765813637871,0.19017188,87286.0,87285.0,1.42713]
[1765813638178,0.19017188,87286.0,87285.0,0.69653]
[1765813638678,0.0114536,87311.0,87300.0,0.20248]
[1765813638869,0.02871316,87310.0,87296.0,0.0114553]
[1765813639068,0.02871316,87310.0,87286.0,0.26116]
[1765813639069,0.0114547,87302.0,87300.0,0.20248]
[1765813639281,0.0114567,87287.0,87284.0,0.17275527]
[1765813639476,0.0114578,87278.0,87276.0,0.002]
[1765813639672,0.2114578,87278.0,87274.0,0.02793507]
[1765813639875,0.2114578,87278.0,87268.0,0.00017188]
[1765813639876,0.0114588,87271.0,87268.0,0.08214988]
[1765813640072,0.1914588,87271.0,87268.0,0.08214896]
[1765813640272,0.18,87271.0,87268.0,0.01163088]
[1765813640478,0.0114573,87283.0,87270.0,0.69653]
[1765813640680,0.0114573,87283.0,87268.0,0.08214896]
[1765813640681,0.0114587,87271.0,87268.0,0.00017188]
[1765813640972,0.03,87271.0,87268.0,0.00017188]
[1765813641372,0.2,87271.0,87268.0,0.00017188]
[1765813641572,0.0114589,87270.0,87268.0,0.00017188]
[1765813641785,0.2014589,87270.0,87268.0,0.00017188]
[1765813641981,0.19,87270.0,87269.0,0.707989]
[1765813642678,0.19,87270.0,87268.0,0.10479309]
[1765813642679,0.00017165,87286.0,87281.0,0.0114574]
[1765813642879,0.20017165,87286.0,87285.0,0.3493]
[1765813643087,0.20017165,87286.0,87285.0,0.69653]
[1765813643478,0.0114569,87285.0,87283.0,0.0820257]
[1765813643681,0.1814569,87285.0,87283.0,0.0820257]
[1765813643982,0.6834378,87278.0,87277.0,0.0820257]
[1765813644175,0.6834389,87270.0,87269.0,0.002]
[1765813644381,0.8734389,87270.0,87269.0,0.002]
[1765813644780,0.34597,87269.0,87268.0,0.00217188]
[1765813645082,0.86198,87269.0,87268.0,0.00217188]
[1765813645285,0.19,87269.0,87268.0,0.69670188]
[1765813645474,0.00017165,87286.0,87268.0,0.69670188]
[1765813645475,0.00017165,87286.0,87285.0,0.7079869]
[1765813645676,0.06243,87339.0,87288.0,0.0114564]
[1765813645974,0.0114518,87324.0,87315.0,0.011453]
[1765813646174,0.0114521,87322.0,87315.0,0.07300985]
[1765813646379,0.0114522,87321.0,87317.0,0.06155685]
[1765813646584,0.1814522,87321.0,87317.0,0.06155685]
[1765813646787,0.0114527,87317.0,87315.0,0.06155685]
[1765813646997,0.15476258,87317.0,87316.0,0.69653]
[1765813647483,0.15476258,87317.0,87316.0,0.06152608]
[1765813647687,0.15476258,87317.0,87310.0,0.02841405]
[1765813647688,0.67198,87311.0,87310.0,0.00017177]
[1765813647988,0.2,87311.0,87310.0,0.00017177]
[1765813648682,0.54597,87311.0,87310.0,0.00017177]
[1765813648874,0.87198,87311.0,87310.0,0.00017177]
[1765813649078,0.2,87311.0,87310.0,0.00017177]
[1765813649278,0.2,87311.0,87310.0,0.69670177]
[1765813649587,0.3014517,87325.0,87310.0,0.69670177]
[1765813649588,0.11,87325.0,87324.0,0.7079818]
[1765813649778,0.18,87325.0,87324.0,0.69653]
[1765813649973,0.18,87325.0,87324.0,0.7079818]
[1765813650180,0.0114481,87353.0,87339.0,0.19501]
[1765813650379,0.2,87353.0,87343.0,0.0114492]
[1765813650574,0.2,87353.0,87337.0,0.00017177]
[1765813650799,0.68948,87338.0,87337.0,0.00017177]
[1765813650980,0.85948,87338.0,87337.0,0.00017177]
[1765813651290,0.17,87338.0,87316.0,0.0114528]
[1765813651484,0.17,87338.0,87322.0,0.0114519]
[1765813651682,0.17,87338.0,87331.0,0.0114508]
[1765813651991,0.17,87338.0,87318.0,0.0114525]
[1765813652182,0.0114509,87331.0,87319.0,0.00017177]
[1765813652382,0.19,87331.0,87326.0,0.0114515]
[1765813652780,0.011451,87330.0,87324.0,0.002]
[1765813652984,0.69993,87325.0,87324.0,0.002]
[1765813653189,0.69993,87325.0,87319.0,0.00017177]
[1765813653190,0.0114523,87320.0,87319.0,0.00017177]
[1765813653490,0.0114523,87320.0,87292.0,0.0114559]
[1765813653491,0.0114545,87304.0,87299.0,0.02876892]
[1765813653688,0.0114545,87304.0,87277.0,0.14369737]
[1765813653689,0.0114556,87295.0,87287.0,0.0114566]
[1765813653987,0.18,87295.0,87280.0,0.20372]
[1765813654182,0.18,87295.0,87290.0,0.08200077]
[1765813654376,0.18,87295.0,87287.0,0.09345737]
[1765813654686,0.18,87295.0,87291.0,0.0114561]
[1765813654887,0.18,87295.0,87293.0,0.0114558]
[1765813655493,0.18,87295.0,87292.0,0.011456]
[1765813656176,0.18,87295.0,87288.0,0.08200077]
[1765813656384,0.18,87295.0,87288.0,0.0114565]
[1765813656589,0.18,87295.0,87291.0,0.011456]
[1765813656888,0.18,87295.0,87287.0,0.17650723]
[1765813656889,0.18,87295.0,87293.0,0.0114559]
[1765813657084,0.18,87295.0,87293.0,0.0124559]
[1765813657879,0.18,87295.0,87293.0,0.001]
[1765813657880,0.34479,87294.0,87293.0,0.001]
[1765813658086,0.48479,87294.0,87291.0,0.012456]
[1765813658386,0.34479,87292.0,87291.0,0.001]
[1765813658589,0.16,87292.0,87291.0,0.001]
[1765813659989,0.34479,87278.0,87277.0,2.54e-06]
[1765813660183,0.7113897,87264.0,87263.0,0.00646536]
[1765813660382,0.69993,87261.0,87260.0,4.86e-06]
[1765813660582,0.34479,87246.0,87245.0,1.04350994]
[1765813660782,0.69993,87240.0,87239.0,0.14369737]
[1765813660984,0.87993,87240.0,87239.0,0.14369737]
[1765813661185,0.18,87240.0,87234.0,0.0114636]
[1765813661489,0.18,87240.0,87231.0,0.00017187]
[1765813661789,0.0114629,87239.0,87231.0,0.02031058]
[1765813661993,0.34479,87235.0,87234.0,0.0114635]
[1765813662290,0.2,87235.0,87231.0,0.020531]
[1765813662791,0.2,87235.0,87234.0,0.67804]
[1765813663388,0.00017187,87248.0,87246.0,0.0114619]
[1765813663692,0.00017187,87248.0,87233.0,0.73028]
[1765813663693,0.0114619,87247.0,87237.0,0.0114631]
[1765813663878,0.2014619,87247.0,87237.0,0.0114631]
[1765813664083,0.19,87247.0,87232.0,0.0114638]
[1765813664494,0.19,87247.0,87232.0,0.18227355]
[1765813664791,0.0114634,87236.0,87234.0,0.003]
[1765813664980,0.2,87236.0,87235.0,0.0114635]
[1765813665388,0.2,87236.0,87234.0,0.003]
[1765813665800,0.2114634,87236.0,87234.0,0.003]
[1765813666092,0.2,87236.0,87234.0,0.003]
[1765813666280,0.2,87236.0,87235.0,0.6895035]
[1765813666481,0.2,87236.0,87234.0,0.003]
[1765813666482,0.2114634,87236.0,87234.0,0.003]
[1765813666789,0.2,87236.0,87232.0,0.0124639]
[1765813666984,0.011463,87239.0,87232.0,0.001]
[1765813667186,0.19,87239.0,87232.0,0.001]
[1765813667488,0.19,87239.0,87235.0,0.001]
[1765813667694,0.7113934,87236.0,87235.0,0.001]
[1765813667991,0.9013934,87236.0,87235.0,0.001]
[1765813668180,0.34479,87232.0,87231.0,0.020531]
[1765813668493,0.87001468,87232.0,87231.0,0.020531]
[1765813669384,0.17008468,87232.0,87231.0,0.020531]
[1765813669587,0.17008468,87232.0,87231.0,0.12297112]
[1765813669785,0.17008468,87232.0,87231.0,0.80101112]
[1765813670077,0.17008468,87232.0,87231.0,0.020531]
[1765813670281,0.17008468,87232.0,87231.0,0.12294906]
[1765813670282,0.87001468,87232.0,87231.0,0.12294906]
[1765813670482,0.87001468,87232.0,87231.0,0.020531]
[1765813671188,0.87001468,87232.0,87231.0,0.021531]
[1765813672183,0.17008468,87232.0,87231.0,0.021531]
[1765813672383,0.17008468,87232.0,87231.0,0.699571]
[1765813672585,0.00017187,87248.0,87247.0,0.6895019]
[1765813672784,0.2,87248.0,87247.0,0.6895019]
[1765813673280,0.2,87248.0,87247.0,0.09375659]
[1765813673486,0.34479,87243.0,87242.0,0.02928055]
[1765813673797,0.34479,87243.0,87236.0,0.10235372]
[1765813673798,0.011463,87239.0,87236.0,0.10235372]
[1765813674101,0.3562537,87233.0,87231.0,0.020531]
[1765813674300,0.34479,87232.0,87231.0,0.04946244]
[1765813674496,0.54479,87232.0,87231.0,0.020531]
[1765813674798,0.89993,87232.0,87231.0,0.020531]
[1765813675895,0.54479,87232.0,87231.0,0.020531]
[1765813676091,0.2,87232.0,87231.0,0.020531]
[1765813676693,0.89993,87232.0,87231.0,0.020531]
[1765813677290,0.89993,87232.0,87231.0,0.021531]
[1765813678001,0.89993,87232.0,87231.0,0.020531]
[1765813678200,0.89993,87232.0,87231.0,0.021531]
[1765813679397,0.2,87232.0,87231.0,0.032995]
[1765813679599,0.89993,87232.0,87231.0,0.021531]
[1765813680302,0.1986345,87227.0,87225.0,3.72e-06]
[1765813680509,0.1986345,87227.0,87190.0,0.14369737]
[1765813680510,0.7113974,87205.0,87190.0,0.14369737]
[1765813680816,0.7113974,87205.0,87179.0,0.14369737]
[1765813680817,0.8813974,87205.0,87179.0,0.14369737]
[1765813680993,0.7114007,87180.0,87179.0,0.14369737]
[1765813681191,0.7114007,87180.0,87179.0,0.02110824]
[1765813681192,0.17,87180.0,87179.0,0.02110824]
[1765813681496,0.0114712,87177.0,87175.0,0.0114712]
[1765813681801,0.7018,87172.0,87171.0,0.00017197]
[1765813682010,0.8918,87172.0,87171.0,0.00017197]
[1765813682500,0.8918,87172.0,87171.0,0.02092649]
[1765813683405,0.7018,87159.0,87158.0,0.14369737]
[1765813683600,0.8932735,87159.0,87158.0,0.16400223]
[1765813683803,0.8932735,87159.0,87158.0,0.01770196]
[1765813684108,0.0114749,87148.0,87144.0,0.02062251]
[1765813684305,0.0114754,87144.0,87143.0,0.14369737]
[1765813684600,0.18011134,87144.0,87141.0,0.00010683]
[1765813684805,0.7018,87142.0,87141.0,0.02068183]
[1765813684992,0.8718,87142.0,87141.0,0.00010683]
[1765813685196,0.8832757,87142.0,87141.0,0.02083452]
[1765813685811,0.7132765,87136.0,87135.0,0.00017207]
[1765813686106,0.8832765,87136.0,87135.0,0.02061709]
[1765813686299,0.8832765,87136.0,87135.0,2.07e-06]
[1765813686495,1.2832765,87136.0,87135.0,2.07e-06]
[1765813686708,0.7018,87131.0,87102.0,0.23260817]
[1765813686901,0.0114773,87130.0,87115.0,0.20482]
[1765813687203,0.0114773,87130.0,87109.0,0.0114799]
[1765813687204,0.40191709,87130.0,87109.0,0.0114799]
[1765813687410,0.7018,87106.0,87105.0,0.02966488]
[1765813687597,0.89193842,87106.0,87105.0,0.02966488]
[1765813687795,0.20161882,87106.0,87105.0,0.02966488]
[1765813688006,0.90341882,87106.0,87105.0,0.02966488]
[1765813688709,0.19013842,87106.0,87105.0,0.03166488]
[1765813688914,0.19013842,87106.0,87105.0,0.75233548]
[1765813689296,0.19013842,87106.0,87105.0,0.03166488]
[1765813689497,0.89193842,87106.0,87105.0,0.03166488]
[1765813690308,0.89193842,87106.0,87105.0,0.03366488]
[1765813690504,0.19013842,87106.0,87105.0,0.03366488]
[1765813691410,0.89193842,87106.0,87105.0,0.03366488]
[1765813691707,0.7132806,87105.0,87104.0,6e-08]
[1765813691908,0.7132806,87105.0,87098.0,0.02248422]
[1765813691909,0.7132814,87099.0,87097.0,2.26e-06]
[1765813692102,0.7018,87098.0,87097.0,2.26e-06]
[1765813692305,0.8918,87098.0,87097.0,2.26e-06]
[1765813692504,0.19,87098.0,87097.0,2.26e-06]
[1765813693311,0.8918,87098.0,87097.0,2.26e-06]
[1765813695316,0.8938,87098.0,87097.0,2.26e-06]
[1765813695517,0.194,87098.0,87097.0,0.35643226]
[1765813695833,0.194,87098.0,87097.0,0.01148386]
[1765813696112,0.195,87098.0,87097.0,0.35643226]
[1765813696511,0.198,87098.0,87097.0,2.26e-06]
[1765813696713,0.197,87098.0,87097.0,0.70919226]
[1765813697607,0.197,87098.0,87097.0,2.26e-06]
[1765813698507,0.7132822,87093.0,87092.0,3e-08]
[1765813698704,0.8932822,87093.0,87092.0,3e-08]
[1765813698904,0.8932822,87093.0,87092.0,0.02115477]
[1765813700118,0.7018,87092.0,87091.0,3e-08]
[1765813700423,0.7018,87092.0,87084.0,0.00011533]
[1765813700424,0.7132832,87085.0,87084.0,6e-08]
[1765813700610,0.9032832,87085.0,87084.0,0.02029185]
[1765813700818,0.2014832,87085.0,87084.0,0.02029185]
[1765813701311,0.9032832,87085.0,87084.0,0.02029185]
[1765813701516,0.2114832,87085.0,87084.0,0.22511185]
[1765813701704,0.011483,87087.0,87086.0,0.35643]
[1765813701902,0.191483,87087.0,87086.0,0.35643]
[1765813702106,0.191483,87087.0,87084.0,0.22511185]
[1765813702404,0.18,87087.0,87086.0,0.7206731]
[1765813702602,0.004,87092.0,87091.0,0.70919]
[1765813703008,0.0114802,87108.0,87105.0,0.70919]
[1765813703208,0.20013842,87106.0,87105.0,0.70919]
[1765813703412,0.21,87120.0,87119.0,0.35643]
[1765813703610,0.11,87134.0,87120.0,0.20482]
[1765813703811,0.0114774,87130.0,87120.0,0.20482]
[1765813704119,0.17,87130.0,87126.0,0.35643]
[1765813704429,0.1814773,87130.0,87129.0,0.35643]
[1765813704722,0.17011591,87130.0,87129.0,0.70919]
[1765813705517,0.0114784,87122.0,87121.0,0.70919]
[1765813705716,0.17,87122.0,87121.0,0.70919]
[1765813706713,0.00011591,87130.0,87129.0,0.70919]
[1765813706923,0.11015497,87130.0,87129.0,0.70919]
[1765813707123,0.00017218,87134.0,87133.0,0.70919]
[1765813707420,0.16,87148.0,87147.0,0.35643]
[1765813707719,0.16,87148.0,87147.0,0.70919]
[1765813707720,0.18,87148.0,87147.0,0.70919]
[1765813707923,0.1801415,87148.0,87147.0,0.70919]
[1765813708923,0.1801415,87148.0,87147.0,0.80203531]
[1765813710518,0.1801415,87148.0,87147.0,0.80503531]
[1765813710721,0.1801415,87148.0,87147.0,0.45227531]
[1765813710923,0.8970615,87148.0,87147.0,0.003]
[1765813711723,0.1916164,87148.0,87147.0,0.003]
[1765813712020,0.1916164,87148.0,87147.0,0.78108045]
[1765813712021,0.1801415,87148.0,87147.0,0.78108045]
[1765813712227,0.00017218,87156.0,87155.0,0.714924]
[1765813712522,0.25,87170.0,87163.0,0.0114728]